bitfinex/quotes_BTCUSD_20240828
["timestamp","ask_amount","ask_price","bid_price","bid_amount"]
[1724831564374,0.51650707,58753.0,58752.0,2.46050113]
[1724831564819,0.007,58753.0,58752.0,2.46050113]
[1724831565077,0.007,58753.0,58752.0,2.48350113]
[1724831565322,0.02668983,58756.0,58755.0,1.671882]
[1724831565546,0.02668983,58756.0,58755.0,1.96208]
[1724831565999,0.02668983,58756.0,58755.0,2.302476]
[1724831566235,0.02668983,58756.0,58755.0,2.494076]
[1724831566477,0.0009009,58762.0,58761.0,1.910015]
[1724831566478,9e-07,58762.0,58761.0,1.910015]
[1724831566677,0.1892,58798.0,58783.0,1.580919]
[1724831566892,0.50540786,58799.0,58783.0,1.680919]
[1724831567131,0.50540786,58799.0,58783.0,0.4901]
[1724831567382,0.50540786,58799.0,58784.0,0.099]
[1724831567613,0.170063,58802.0,58792.0,0.170089]
[1724831567856,0.680297,58801.0,58792.0,0.170089]
[1724831568070,0.170068,58800.0,58788.0,0.170101]
[1724831568293,0.51023,58799.0,58787.0,0.340208]
[1724831568516,0.51023,58799.0,58789.0,0.170097]
[1724831568771,0.51023,58799.0,58784.0,0.099]
[1724831568772,0.6311919,58799.0,58784.0,0.099]
[1724831568987,0.6311919,58799.0,58785.0,0.023]
[1724831568988,0.51023,58799.0,58785.0,0.023]
[1724831569190,0.51023,58799.0,58789.0,0.170098]
[1724831569630,0.680302,58799.0,58789.0,0.170098]
[1724831569848,0.692302,58799.0,58789.0,0.171098]
[1724831570060,0.170075,58798.0,58789.0,0.001]
[1724831570284,0.53690678,58797.0,58789.0,0.001]
[1724831570515,0.70698378,58797.0,58788.0,0.170101]
[1724831570751,0.70698378,58797.0,58785.0,0.023]
[1724831570752,0.53690678,58797.0,58789.0,0.001]
[1724831570971,0.53690678,58797.0,58796.0,0.170079]
[1724831571271,0.53690678,58797.0,58789.0,0.001]
[1724831571490,0.170084,58795.0,58789.0,0.001]
[1724831571713,0.340159,58796.0,58789.0,0.001]
[1724831571714,0.680317,58794.0,58789.0,0.001]
[1724831571921,0.51023,58794.0,58789.0,0.001]
[1724831572136,0.51023,58794.0,58777.0,0.572433]
[1724831572137,0.394,58790.0,58777.0,0.572433]
[1724831572381,0.394,58790.0,58760.0,0.50540786]
[1724831572382,0.1973,58788.0,58769.0,0.4023]
[1724831572579,0.1973,58788.0,58760.0,0.50540786]
[1724831572580,0.170139,58776.0,58771.0,0.068228]
[1724831572787,0.51023,58775.0,58769.0,0.170157]
[1724831573004,0.51023,58775.0,58766.0,0.170165]
[1724831573270,0.51023,58775.0,58774.0,0.340286]
[1724831573462,0.51023,58775.0,58774.0,0.850715]
[1724831574116,0.51023,58775.0,58774.0,1.191001]
[1724831574337,0.53691292,58775.0,58774.0,1.594401]
[1724831574552,0.53691292,58775.0,58774.0,1.717401]
[1724831575951,0.53791292,58775.0,58774.0,1.717401]
[1724831576380,0.53691292,58775.0,58774.0,1.717401]
[1724831576636,0.53691292,58775.0,58774.0,1.71822]
[1724831579157,0.53691292,58775.0,58774.0,2.252606]
[1724831579400,0.53691292,58775.0,58774.0,2.597892]
[1724831579639,0.02668292,58775.0,58774.0,2.257606]
[1724831579861,0.02668292,58775.0,58774.0,2.252606]
[1724831581242,0.1709719,58799.0,58792.0,0.170088]
[1724831581475,0.50540786,58793.0,58792.0,0.170088]
[1724831581699,0.50540786,58793.0,58788.0,0.340202]
[1724831581700,0.340155,58793.0,58788.0,0.340202]
[1724831581925,0.340155,58793.0,58792.0,0.510273]
[1724831582386,0.340155,58793.0,58792.0,0.170091]
[1724831582607,0.340155,58793.0,58792.0,0.510273]
[1724831583285,0.340155,58793.0,58783.0,0.1]
[1724831583524,0.340155,58793.0,58792.0,0.510273]
[1724831583783,0.340155,58793.0,58792.0,0.850455]
[1724831584003,0.67914259,58801.0,58800.0,1.60452522]
[1724831584004,0.774865,58801.0,58800.0,1.60452522]
[1724831584238,0.6048,58801.0,58800.0,1.60452522]
[1724831584463,1.115,58801.0,58800.0,1.60452522]
[1724831584682,1.14167567,58801.0,58800.0,1.60452522]
[1724831585561,1.51932263,58801.0,58800.0,1.60452522]
[1724831585772,1.61908077,58801.0,58800.0,1.60452522]
[1724831585990,2.46940577,58801.0,58800.0,1.60452522]
[1724831586221,2.57054767,58801.0,58800.0,1.60452522]
[1724831586507,2.44584999,58801.0,58800.0,1.60452522]
[1724831586741,2.36964763,58801.0,58800.0,1.60452522]
[1724831587404,2.02951763,58801.0,58800.0,1.60452522]
[1724831587624,2.36964763,58801.0,58800.0,1.60452522]
[1724831588147,1.51932263,58801.0,58800.0,1.60452522]
[1724831588371,0.55036186,58801.0,58800.0,2.45486522]
[1724831588606,0.55036186,58801.0,58800.0,1.60452522]
[1724831588846,1.06055686,58801.0,58800.0,1.60452522]
[1724831589075,1.98000489,58801.0,58800.0,1.60452522]
[1724831589315,1.88000374,58801.0,58800.0,1.60452522]
[1724831589807,1.88001406,58801.0,58800.0,1.60452522]
[1724831590026,1.53988406,58801.0,58800.0,1.60452522]
[1724831590748,1.54078387,58801.0,58800.0,1.60452522]
[1724831590976,1.02888342,58801.0,58800.0,1.60452522]
[1724831591431,1.19894842,58801.0,58800.0,1.60452522]
[1724831591661,1.09896747,58801.0,58800.0,1.60452522]
[1724831591895,0.55126167,58801.0,58800.0,1.77459322]
[1724831592124,0.62623921,58801.0,58800.0,1.77459322]
[1724831592352,0.55126167,58801.0,58800.0,1.60452522]
[1724831592580,0.62623921,58801.0,58800.0,1.60452522]
[1724831592844,0.62623674,58801.0,58800.0,1.60452522]
[1724831593996,1.05383791,58801.0,58800.0,1.60452522]
[1724831594300,0.9288763,58801.0,58800.0,2.11472922]
[1724831594519,0.62624795,58801.0,58800.0,2.11472922]
[1724831594764,0.62624795,58801.0,58800.0,2.81800122]
[1724831594765,0.5512592,58801.0,58800.0,2.81800122]
[1724831595909,0.53777548,58801.0,58800.0,3.65113722]
[1724831596153,0.53777548,58801.0,58800.0,3.31100122]
[1724831596954,0.53777548,58801.0,58800.0,3.65113722]
[1724831597787,0.53777548,58801.0,58800.0,3.84543722]
[1724831598701,0.008987,58821.0,58820.0,1.03765]
[1724831598923,0.008987,58821.0,58820.0,1.45455]
[1724831599167,0.008987,58821.0,58820.0,1.89457]
[1724831599389,0.008987,58821.0,58820.0,2.25777661]
[1724831600272,0.008987,58821.0,58820.0,2.59779661]
[1724831601960,0.008987,58821.0,58820.0,1.00393]
[1724831602168,0.519017,58821.0,58820.0,0.61003]
[1724831602618,0.519017,58821.0,58820.0,0.1]
[1724831602847,0.519017,58821.0,58810.0,0.4705]
[1724831603343,0.519017,58821.0,58801.0,0.58090472]
[1724831603344,0.340059,58814.0,58805.0,0.170052]
[1724831603573,0.51003,58813.0,58802.0,0.340119]
[1724831603801,0.51003,58813.0,58801.0,0.58090472]
[1724831603802,0.0850089,58812.0,58801.0,0.58090472]
[1724831604018,0.0850089,58812.0,58805.0,0.340106]
[1724831604237,0.340029,58819.0,58805.0,0.340106]
[1724831604238,0.51003,58811.0,58810.0,0.170039]
[1724831604689,0.51003,58811.0,58810.0,0.510117]
[1724831604912,0.51003,58811.0,58810.0,0.850195]
[1724831605355,0.51003,58811.0,58810.0,0.873195]
[1724831606040,0.51003,58811.0,58810.0,0.193039]
[1724831606270,0.51003,58811.0,58810.0,0.533117]
[1724831607396,0.51003,58811.0,58810.0,0.873195]
[1724831607628,0.51003,58811.0,58810.0,1.313273]
[1724831607850,0.51003,58811.0,58810.0,1.695173]
[1724831608314,0.51003,58811.0,58810.0,1.763348]
[1724831609033,0.51003,58811.0,58801.0,0.00020472]
[1724831609034,0.85031,58802.0,58801.0,0.00020472]
[1724831609277,1.41218586,58802.0,58801.0,0.00020472]
[1724831609545,0.90199986,58802.0,58801.0,0.00020472]
[1724831609785,0.95182184,58802.0,58801.0,0.00020472]
[1724831610474,1.58117564,58802.0,58801.0,0.00020472]
[1724831610717,1.58117564,58802.0,58800.0,1.60452522]
[1724831610718,1.587455,58801.0,58800.0,1.60452522]
[1724831610950,1.63841472,58801.0,58800.0,1.60452522]
[1724831611181,1.46818472,58801.0,58800.0,1.60452522]
[1724831611416,2.3069022,58801.0,58800.0,1.60452522]
[1724831611628,2.6470322,58801.0,58800.0,1.60452522]
[1724831612110,2.48857472,58801.0,58800.0,1.60452522]
[1724831612800,2.47510486,58801.0,58800.0,1.60452522]
[1724831613046,3.01420516,58801.0,58800.0,1.60452522]
[1724831613264,2.67407516,58801.0,58800.0,1.60452522]
[1724831613955,3.16641579,58801.0,58800.0,1.60452522]
[1724831614175,3.33366989,58801.0,58800.0,1.60452522]
[1724831614857,3.67379989,58801.0,58800.0,1.60452522]
[1724831615080,3.33366989,58801.0,58800.0,1.60452522]
[1724831615335,2.82371963,58801.0,58800.0,1.60452522]
[1724831615557,2.67407516,58801.0,58800.0,1.60452522]
[1724831616276,2.66060486,58801.0,58800.0,1.60452522]
[1724831616519,3.01920726,58801.0,58800.0,1.60452522]
[1724831616739,3.50949777,58801.0,58800.0,1.60452522]
[1724831616969,3.67784472,58801.0,58800.0,1.60452522]
[1724831620831,3.16416308,58801.0,58800.0,1.60452522]
[1724831621278,2.82338739,58801.0,58800.0,1.60452522]
[1724831621502,2.67387257,58801.0,58800.0,1.60452522]
[1724831621928,2.33374257,58801.0,58800.0,1.60452522]
[1724831622135,2.33374257,58801.0,58800.0,1.60183244]
[1724831623004,1.95612271,58801.0,58800.0,1.60183244]
[1724831623364,0.03495375,58807.0,58800.0,1.60183244]
[1724831623673,0.170065,58801.0,58800.0,1.60183244]
[1724831623844,0.69373325,58801.0,58800.0,1.60183244]
[1724831624072,1.37399325,58801.0,58800.0,1.60183244]
[1724831625512,1.360525,58801.0,58800.0,1.60183244]
[1724831625709,1.37399148,58801.0,58800.0,1.60183244]
[1724831629068,1.37399148,58801.0,58800.0,1.60264944]
[1724831630255,1.4006678,58801.0,58800.0,1.60264944]
[1724831633264,1.0605378,58801.0,58800.0,1.60264944]
[1724831633700,0.7204078,58801.0,58800.0,1.60264944]
[1724831634111,0.5503428,58801.0,58800.0,1.60264944]
[1724831634529,0.5503428,58801.0,58800.0,3.06358944]
[1724831634745,0.55034759,58801.0,58800.0,3.52676544]
[1724831635000,0.53687632,58801.0,58800.0,3.52676544]
[1724831635897,0.53687632,58801.0,58800.0,3.18662944]
[1724831636140,0.55034232,58801.0,58800.0,2.01428944]
[1724831636597,0.55034232,58801.0,58800.0,2.52449344]
[1724831636809,0.55034232,58801.0,58800.0,2.86462944]
[1724831637025,0.55034232,58801.0,58800.0,2.52449344]
[1724831637437,0.55034232,58801.0,58800.0,2.18435744]
[1724831637655,0.55034232,58801.0,58800.0,2.01428944]
[1724831638348,0.78042577,58801.0,58800.0,1.60268944]
[1724831638554,1.12055577,58801.0,58800.0,1.60268944]
[1724831638836,1.51052792,58801.0,58800.0,1.60268944]
[1724831639072,1.1205537,58801.0,58800.0,1.60268944]
[1724831639291,0.72040525,58801.0,58800.0,1.60268944]
[1724831639719,0.55034025,58801.0,58800.0,1.60268944]
[1724831640631,1.40066525,58801.0,58800.0,1.60268944]
[1724831640855,0.79511328,58801.0,58800.0,1.60268944]
[1724831641074,0.72040525,58801.0,58800.0,1.60268944]
[1724831641294,1.13654372,58801.0,58800.0,1.60268944]
[1724831641510,1.15000774,58801.0,58800.0,1.60268944]
[1724831641953,1.49013774,58801.0,58800.0,1.60268944]
[1724831642167,1.15000774,58801.0,58800.0,1.60268944]
[1724831642381,0.79511509,58801.0,58800.0,1.60268944]
[1724831642638,0.60014909,58801.0,58800.0,1.60268944]
[1724831643049,0.55034034,58801.0,58800.0,1.60268944]
[1724831643279,1.64007409,58801.0,58800.0,1.60268944]
[1724831643487,2.06083486,58801.0,58800.0,1.60268944]
[1724831643690,1.02761266,58801.0,58800.0,1.77275744]
[1724831643932,0.55034034,58801.0,58800.0,1.60268944]
[1724831644133,0.60015649,58801.0,58800.0,1.60268944]
[1724831644353,0.55034034,58801.0,58800.0,1.60268944]
[1724831644566,0.53687632,58801.0,58800.0,1.77275744]
[1724831644776,0.53687632,58801.0,58800.0,2.11289344]
[1724831644990,0.53687632,58801.0,58800.0,1.60268944]
[1724831644991,0.55033543,58801.0,58800.0,1.60268944]
[1724831645439,0.55033543,58801.0,58800.0,2.15175744]
[1724831645658,0.55033543,58801.0,58800.0,1.98168944]
[1724831645883,0.55033543,58801.0,58800.0,1.98118944]
[1724831646113,0.55033543,58801.0,58800.0,2.49139344]
[1724831646319,0.55033543,58801.0,58800.0,2.83152944]
[1724831647401,0.60020278,58801.0,58800.0,2.83152944]
[1724831647881,0.55033543,58801.0,58800.0,2.83152944]
[1724831648173,0.53687632,58801.0,58800.0,3.17166544]
[1724831648378,0.55033468,58801.0,58800.0,3.27166544]
[1724831648799,0.55033468,58801.0,58800.0,3.45416544]
[1724831649006,0.53687632,58801.0,58800.0,3.81730144]
[1724831649430,0.55033468,58801.0,58800.0,3.81700144]
[1724831651392,0.55033036,58801.0,58800.0,3.81700144]
[1724831652061,0.53687632,58801.0,58800.0,3.81700144]
[1724831653583,0.53687632,58801.0,58800.0,4.15713744]
[1724831653805,0.12027632,58801.0,58800.0,4.15713744]
[1724831655147,0.12027632,58801.0,58800.0,3.81700144]
[1724831656095,0.12027632,58801.0,58800.0,4.10742779]
[1724831660656,0.12027632,58801.0,58800.0,2.67359344]
[1724831660857,0.12027632,58801.0,58800.0,1.60188944]
[1724831660858,0.643915,58801.0,58800.0,1.60188944]
[1724831661071,1.228415,58801.0,58800.0,1.60188944]
[1724831661283,1.39275049,58801.0,58800.0,1.60188944]
[1724831661530,1.09587279,58801.0,58800.0,1.77195744]
[1724831661736,0.20852902,58801.0,58800.0,1.77695744]
[1724831662001,0.13371826,58801.0,58800.0,3.20816544]
[1724831662444,0.13371826,58801.0,58800.0,2.52789344]
[1724831662858,0.13371826,58801.0,58800.0,2.11709344]
[1724831663059,0.13371826,58801.0,58800.0,2.45722944]
[1724831663359,0.13371826,58801.0,58800.0,2.79736544]
[1724831663596,0.13371826,58801.0,58800.0,2.89736544]
[1724831663814,0.13371826,58801.0,58800.0,2.21709344]
[1724831664041,0.18359592,58801.0,58800.0,1.87695744]
[1724831664260,0.51134163,58801.0,58800.0,1.70688944]
[1724831664506,0.61112469,58801.0,58800.0,1.70688944]
[1724831664731,0.61112469,58801.0,58800.0,2.21709344]
[1724831664934,0.61112514,58801.0,58800.0,2.21709344]
[1724831665161,0.61112514,58801.0,58800.0,2.55722944]
[1724831665348,0.13371871,58801.0,58800.0,2.89736544]
[1724831665621,0.13371871,58801.0,58800.0,2.55722944]
[1724831665622,0.20859181,58801.0,58800.0,2.55722944]
[1724831665870,0.20859224,58801.0,58800.0,2.55722944]
[1724831666307,0.13371914,58801.0,58800.0,2.55722944]
[1724831666759,0.51132626,58801.0,58800.0,2.55722944]
[1724831666989,0.20862282,58801.0,58800.0,2.55722944]
[1724831667238,0.13371914,58801.0,58800.0,2.55722944]
[1724831667688,0.13371914,58801.0,58800.0,2.89736544]
[1724831668380,0.11527632,58801.0,58800.0,3.23750144]
[1724831668607,0.1287282,58801.0,58800.0,3.49596544]
[1724831668848,0.11527632,58801.0,58800.0,3.49596544]
[1724831669068,0.11527632,58801.0,58800.0,3.83610144]
[1724831669303,0.03585246,58807.0,58806.0,1.190353]
[1724831669523,0.03515246,58807.0,58806.0,2.17937935]
[1724831669794,0.03515246,58807.0,58806.0,2.51948035]
[1724831670431,0.0349478,58807.0,58806.0,2.85958135]
[1724831670639,0.0349478,58807.0,58806.0,2.51948035]
[1724831671738,0.0349478,58807.0,58806.0,2.88118921]
[1724831671954,0.0349478,58807.0,58806.0,2.54108821]
[1724831678695,0.0349478,58807.0,58806.0,2.88118921]
[1724831679366,0.0289478,58807.0,58806.0,2.88118921]
[1724831679792,0.0233478,58807.0,58806.0,2.88118921]
[1724831680027,0.0187478,58807.0,58806.0,2.88118921]
[1724831680951,0.00089871,58807.0,58806.0,2.88118921]
[1724831681182,0.58031356,58829.0,58828.0,0.169987]
[1724831681395,0.5188669,58829.0,58828.0,0.849935]
[1724831681623,0.09310758,58829.0,58828.0,0.849935]
[1724831681810,0.01820188,58829.0,58828.0,0.849935]
[1724831682047,0.09310758,58829.0,58828.0,0.849935]
[1724831682270,0.09310758,58829.0,58828.0,0.169987]
[1724831682271,0.39564016,58829.0,58828.0,0.169987]
[1724831682521,0.09311889,58829.0,58828.0,1e-08]
[1724831682741,0.61350188,58829.0,58828.0,0.50996101]
[1724831683192,0.61350188,58829.0,58828.0,1e-08]
[1724831683193,0.6923312,58829.0,58828.0,1e-08]
[1724831683411,0.68840988,58829.0,58828.0,0.16998701]
[1724831683651,0.66344253,58829.0,58828.0,0.16998701]
[1724831683879,0.61350188,58829.0,58828.0,0.16998701]
[1724831684546,0.66344025,58829.0,58828.0,0.16998701]
[1724831684779,0.66344221,58829.0,58828.0,0.16998701]
[1724831685039,1.17340221,58829.0,58828.0,0.16998701]
[1724831685262,1.12346384,58829.0,58828.0,0.16998701]
[1724831685475,0.55482471,58829.0,58828.0,0.16998701]
[1724831685914,0.6047672,58829.0,58828.0,0.16998701]
[1724831686118,0.55482471,58829.0,58828.0,0.16998701]
[1724831686602,0.60476307,58829.0,58828.0,0.16998701]
[1724831686811,0.55482471,58829.0,58828.0,0.16998701]
[1724831687028,0.55482471,58829.0,58828.0,0.50996101]
[1724831687029,0.60476307,58829.0,58828.0,0.50996101]
[1724831687225,0.60476458,58829.0,58828.0,0.50996101]
[1724831687464,0.60476458,58829.0,58828.0,0.84993501]
[1724831687684,0.60476488,58829.0,58828.0,0.84993501]
[1724831688315,0.55482501,58829.0,58828.0,0.84993501]
[1724831688707,0.55572372,58829.0,58828.0,0.84993501]
[1724831689153,0.605678,58829.0,58828.0,0.84993501]
[1724831690369,0.55572372,58829.0,58828.0,0.84993501]
[1724831690904,0.55572372,58829.0,58828.0,1.18990901]
[1724831692500,0.5557219,58829.0,58828.0,1.18990901]
[1724831693293,0.54226242,58829.0,58828.0,1.52988301]
[1724831693477,0.54226242,58829.0,58828.0,2.38405701]
[1724831693669,0.54226242,58829.0,58828.0,2.04408301]
[1724831694112,0.54226242,58829.0,58828.0,2.06572964]
[1724831697511,0.54226242,58829.0,58828.0,2.59350364]
[1724831697723,0.54226242,58829.0,58828.0,2.25352964]
[1724831697961,0.54226242,58829.0,58828.0,2.59350364]
[1724831698375,0.54226242,58829.0,58828.0,2.25352964]
[1724831700406,0.54226242,58829.0,58828.0,2.25434664]
[1724831702053,0.47426842,58829.0,58828.0,2.25434664]
[1724831702302,0.47426842,58829.0,58828.0,2.59432064]
[1724831702554,0.1425,58833.0,58828.0,2.59432064]
[1724831702555,0.1425,58833.0,58832.0,1.529779]
[1724831702797,0.1425,58833.0,58832.0,2.34380535]
[1724831703055,0.1425,58833.0,58832.0,2.68375635]
[1724831703269,0.0009009,58845.0,58844.0,1.930064]
[1724831703493,0.0009009,58845.0,58844.0,2.32049035]
[1724831703718,0.0009009,58845.0,58844.0,2.053064]
[1724831704406,0.009009,58855.0,58854.0,1.529203]
[1724831704624,0.009009,58855.0,58854.0,2.30272935]
[1724831708163,0.009009,58855.0,58854.0,1.28938]
[1724831708606,0.009009,58855.0,58854.0,1.28942]
[1724831710995,0.009009,58855.0,58854.0,2.008543]
[1724831711218,0.009009,58855.0,58854.0,1.66872]
[1724831711912,0.009009,58855.0,58854.0,2.219943]
[1724831713009,0.009009,58855.0,58854.0,2.24185121]
[1724831713453,0.009009,58855.0,58854.0,1.90202821]
[1724831713674,0.009009,58855.0,58854.0,1.28942]
[1724831714832,0.009009,58855.0,58854.0,1.298429]
[1724831715047,0.009009,58855.0,58854.0,1.701329]
[1724831715270,0.009009,58855.0,58854.0,2.041152]
[1724831716416,0.008987,58860.0,58854.0,2.041152]
[1724831716417,0.04979427,58871.0,58864.0,0.169883]
[1724831716650,0.02245316,58865.0,58864.0,0.609649]
[1724831716888,0.008987,58865.0,58864.0,0.949415]
[1724831717572,0.02245328,58865.0,58864.0,0.949415]
[1724831717777,0.008987,58865.0,58864.0,0.949415]
[1724831719130,0.0224537,58865.0,58864.0,0.949415]
[1724831719784,0.0224537,58865.0,58864.0,1.289181]
[1724831720014,0.008987,58865.0,58864.0,1.289181]
[1724831720240,0.02245579,58865.0,58864.0,1.289181]
[1724831720873,0.04909807,58865.0,58864.0,1.289221]
[1724831721127,0.04909807,58865.0,58864.0,2.212987]
[1724831721128,0.03562928,58865.0,58864.0,2.212987]
[1724831721372,0.03562928,58865.0,58864.0,2.575753]
[1724831721373,0.008987,58865.0,58864.0,2.575753]
[1724831722301,0.008987,58865.0,58864.0,2.61580702]
[1724831722524,0.008987,58865.0,58864.0,2.575753]
[1724831722984,0.008987,58865.0,58864.0,1.678221]
[1724831723197,0.008987,58865.0,58864.0,1.289221]
[1724831724076,0.008987,58865.0,58864.0,4e-05]
[1724831724308,0.008987,58865.0,58864.0,0.509649]
[1724831724541,0.008987,58865.0,58864.0,0.849415]
[1724831725057,0.008987,58865.0,58864.0,1.189181]
[1724831725288,0.008987,58865.0,58864.0,0.509649]
[1724831725519,0.008987,58865.0,58864.0,0.609649]
[1724831725751,0.008987,58865.0,58864.0,0.949415]
[1724831725979,0.03563074,58865.0,58864.0,0.949415]
[1724831728481,0.03563074,58865.0,58864.0,1.289181]
[1724831729894,0.03563074,58865.0,58864.0,0.269883]
[1724831730567,0.03563074,58865.0,58864.0,0.949415]
[1724831731008,0.03542627,58865.0,58864.0,0.949415]
[1724831731235,0.08530892,58865.0,58864.0,0.949415]
[1724831731477,0.08530892,58865.0,58864.0,0.609649]
[1724831731713,0.27210892,58865.0,58864.0,0.609649]
[1724831731942,0.78175892,58865.0,58864.0,0.1]
[1724831732190,1.23760719,58865.0,58864.0,0.1]
[1724831732438,1.23760719,58865.0,58862.0,0.169887]
[1724831732439,1.51649329,58865.0,58862.0,0.169887]
[1724831732662,0.47722735,58864.0,58863.0,0.1]
[1724831732904,0.98687735,58864.0,58863.0,0.609658]
[1724831733358,1.01196179,58864.0,58863.0,0.269886]
[1724831733585,1.01196179,58864.0,58863.0,0.609658]
[1724831733808,0.88686328,58864.0,58863.0,0.609658]
[1724831734027,0.88686328,58864.0,58863.0,0.269886]
[1724831734260,1.01196179,58864.0,58863.0,0.269886]
[1724831734693,1.01196179,58864.0,58863.0,0.609658]
[1724831735423,0.88686328,58864.0,58863.0,0.609658]
[1724831735666,0.88686328,58864.0,58863.0,0.950246]
[1724831735897,0.50965,58864.0,58863.0,0.950246]
[1724831736325,0.50965,58864.0,58863.0,0.98366678]
[1724831736545,0.55970157,58864.0,58863.0,0.98366678]
[1724831737284,0.50965,58864.0,58863.0,0.98370678]
[1724831737761,0.50965,58864.0,58863.0,1.32347878]
[1724831738006,0.55970157,58864.0,58863.0,0.98370678]
[1724831738243,0.55970282,58864.0,58863.0,0.98370678]
[1724831738451,0.50965,58864.0,58863.0,0.98370678]
[1724831738888,0.55970534,58864.0,58863.0,0.98370678]
[1724831739104,0.50965,58864.0,58863.0,0.98370678]
[1724831739562,0.50965,58864.0,58863.0,1.37170678]
[1724831739992,0.50965,58864.0,58863.0,1.71147878]
[1724831740204,0.55970798,58864.0,58863.0,1.71147878]
[1724831740872,0.55970798,58864.0,58863.0,0.98370678]
[1724831741745,0.58475355,58864.0,58863.0,0.98370678]
[1724831742005,1.29713203,58864.0,58863.0,0.30416278]
[1724831742247,1.73855082,58864.0,58863.0,0.03427678]
[1724831742461,1.56871104,58864.0,58860.0,0.339787]
[1724831742682,1.56871104,58864.0,58857.0,0.1]
[1724831742683,0.12516739,58862.0,58858.0,0.07260808]
[1724831742894,0.10013558,58860.0,58859.0,0.169897]
[1724831743126,0.88687525,58860.0,58859.0,0.169897]
[1724831743596,0.88687525,58860.0,58858.0,0.41240608]
[1724831743597,0.169897,58859.0,58858.0,0.07260808]
[1724831743820,2.65805725,58859.0,58858.0,0.07260808]
[1724831744278,3.15218823,58859.0,58858.0,0.07260808]
[1724831744516,3.32073987,58859.0,58858.0,0.07260808]
[1724831744754,3.32073987,58859.0,58854.0,4e-05]
[1724831744755,0.849545,58855.0,58854.0,4e-05]
[1724831744983,3.08166882,58855.0,58854.0,4e-05]
[1724831745224,0.169973,58833.0,58828.0,0.17080201]
[1724831745467,0.48309014,58831.0,58828.0,0.00081701]
[1724831745718,1.01208821,58830.0,58828.0,0.00081701]
[1724831745943,0.50243821,58829.0,58828.0,0.00081701]
[1724831746170,1.05685925,58829.0,58828.0,0.00081701]
[1724831746403,1.19106611,58829.0,58828.0,0.00081701]
[1724831746864,1.2910578,58829.0,58828.0,0.00081701]
[1724831747335,0.58459682,58829.0,58828.0,0.00081701]
[1724831747571,0.58459682,58829.0,58828.0,0.51077801]
[1724831747800,0.50965,58829.0,58828.0,0.51077801]
[1724831748498,0.50910792,58829.0,58828.0,0.51077801]
[1724831749198,0.50910792,58829.0,58828.0,0.85075201]
[1724831749694,0.50910792,58829.0,58828.0,1.22695201]
[1724831749931,0.50910792,58829.0,58828.0,1.32695201]
[1724831751044,0.50910792,58829.0,58828.0,1.32699201]
[1724831752175,0.50910792,58829.0,58828.0,1.85966601]
[1724831753501,0.50910792,58829.0,58828.0,2.51306636]
[1724831754603,0.04988967,58853.0,58850.0,1.189464]
[1724831754865,0.4128,58862.0,58850.0,1.189464]
[1724831754866,0.50540786,58852.0,58851.0,0.609761]
[1724831755120,0.69489486,58868.0,58864.0,0.169883]
[1724831755337,0.51843253,58865.0,58864.0,0.509649]
[1724831755549,0.51843253,58865.0,58864.0,0.849415]
[1724831755774,0.51843253,58865.0,58864.0,0.509649]
[1724831757183,0.51843253,58865.0,58864.0,0.169883]
[1724831757609,0.51843253,58865.0,58864.0,0.509649]
[1724831758262,0.51843253,58865.0,58851.0,0.41342635]
[1724831758263,0.63729229,58865.0,58855.0,0.339813]
[1724831758495,0.68719636,58865.0,58856.0,0.43981]
[1724831758709,0.63729229,58865.0,58861.0,0.16989]
[1724831758943,0.13002805,58864.0,58860.0,0.169892]
[1724831759164,0.50965,58863.0,58856.0,0.1]
[1724831759364,0.4001,58862.0,58854.0,0.000816]
[1724831759590,0.169909,58855.0,58854.0,0.000816]
[1724831759812,0.679559,58855.0,58854.0,0.000816]
[1724831760042,0.50965,58855.0,58854.0,0.000816]
[1724831760289,0.62406152,58855.0,58854.0,0.000816]
[1724831760753,0.50965,58855.0,58854.0,0.170727]
[1724831760979,0.50965,58855.0,58854.0,0.51055]
[1724831761206,0.50965,58855.0,58854.0,0.850373]
[1724831761886,0.50965,58855.0,58854.0,1.190196]
[1724831764345,0.50965,58855.0,58854.0,1.380796]
[1724831764571,0.50965,58855.0,58854.0,0.850373]
[1724831765255,0.50965,58855.0,58854.0,0.850413]
[1724831765485,0.53629792,58855.0,58854.0,0.850413]
[1724831766147,0.60240561,58855.0,58854.0,0.170767]
[1724831766384,0.60240561,58855.0,58845.0,0.3787]
[1724831766790,0.04991903,58854.0,58848.0,0.339857]
[1724831766792,0.04951769,58853.0,58852.0,0.169917]
[1724831766976,0.339736,58853.0,58849.0,0.339849]
[1724831767178,0.339736,58853.0,58852.0,0.509752]
[1724831767556,0.339736,58853.0,58852.0,0.169917]
[1724831768685,0.36638651,58853.0,58852.0,0.169917]
[1724831769596,0.36638651,58853.0,58852.0,0.509752]
[1724831770035,0.36638651,58853.0,58852.0,0.849587]
[1724831770292,0.36638651,58853.0,58852.0,0.509752]
[1724831770593,0.44258516,58853.0,58850.0,0.339845]
[1724831770725,0.44258516,58853.0,58852.0,0.169917]
[1724831771364,0.44258516,58853.0,58852.0,0.169957]
[1724831771575,0.44726448,58853.0,58852.0,4e-05]
[1724831771822,0.64466448,58853.0,58852.0,4e-05]
[1724831772064,0.81457848,58853.0,58852.0,4e-05]
[1724831773616,1.15440748,58853.0,58852.0,4e-05]
[1724831774262,1.49423648,58853.0,58852.0,4e-05]
[1724831774748,1.56914104,58853.0,58852.0,4e-05]
[1724831775172,1.22931204,58853.0,58852.0,4e-05]
[1724831775408,1.22931204,58853.0,58842.0,0.339887]
[1724831775409,1.55581339,58853.0,58842.0,0.339887]
[1724831775621,1.55581339,58853.0,58829.0,0.169983]
[1724831775622,0.339927,58836.0,58829.0,0.169983]
[1724831775866,0.158,58837.0,58832.0,0.169974]
[1724831775867,0.339736,58835.0,58832.0,0.169974]
[1724831776135,0.339736,58835.0,58832.0,0.6108]
[1724831776354,0.36639276,58835.0,58834.0,1.55647335]
[1724831776605,0.36639276,58835.0,58834.0,0.4162]
[1724831776841,0.36639276,58835.0,58831.0,0.170794]
[1724831776842,0.36639276,58835.0,58832.0,0.169973]
[1724831777141,0.36639276,58835.0,58834.0,0.169969]
[1724831777266,0.36639276,58835.0,58834.0,0.509908]
[1724831777730,0.36639276,58835.0,58834.0,0.849847]
[1724831778424,0.36639276,58835.0,58834.0,0.509908]
[1724831778645,0.36639276,58835.0,58834.0,0.849847]
[1724831779079,0.36639276,58835.0,58834.0,1.189786]
[1724831779313,0.36639276,58835.0,58834.0,1.604586]